fUSD/lending_fUSD_20250213
["ID","MTS","AMOUNT","RATE_DAILY","PERIOD"]
[353010041,1739485905794,-500.0,0.00014356,2]
[353010042,1739485905804,-791.76,0.00014356,2]
[353010043,1739485905814,-500.0,0.00014356,2]
[353010044,1739485905824,-1002.52,0.00014356,2]
[353010045,1739485905835,-500.0,0.00014356,2]
[353010046,1739485905844,-673.2,0.00014356,2]
[353010047,1739485905853,-864.99,0.00014356,2]
[353010048,1739485905863,-556.42,0.00014356,2]
[353010049,1739485905873,-606.37,0.00014356,2]
[353010050,1739485905882,-500.0,0.00014356,2]
[353010051,1739485905892,-500.0,0.00014356,2]
[353010052,1739485905901,-500.0,0.00014356,2]
[353010053,1739485905911,-542.4,0.00014356,2]
[353010054,1739485905920,-500.0,0.00014356,2]
[353010055,1739485905930,-606.89,0.00014356,2]
[353010056,1739485905939,-551.03,0.00014356,2]
[353010057,1739485905949,-500.0,0.00014356,2]
[353010058,1739485905958,-571.58,0.00014356,2]
[353010059,1739485905968,-507.69,0.00014356,2]
[353010060,1739485905977,-500.0,0.00014356,2]
[353010061,1739485905987,-500.0,0.00014356,2]
[353010062,1739485905996,-500.0,0.00014356,2]
[353010063,1739485906006,-500.0,0.00014356,2]
[353010064,1739485906016,-500.0,0.00014356,2]
[353010065,1739485906031,-500.0,0.00014356,2]
[353010066,1739485906043,-500.0,0.00014356,2]
[353010067,1739485906054,-500.0,0.00014356,2]
[353010068,1739485906063,-183.038698,0.00014356,2]
[353010069,1739485906073,-500.0,0.00014356,2]
[353010070,1739485906083,-2208.67,0.00014356,2]
[353010071,1739485906092,-543.67,0.00014356,2]
[353010072,1739485906101,-823.62,0.00014356,2]
[353010073,1739485906111,-653.16,0.00014356,2]
[353010074,1739485906120,-151.603264,0.00014356,2]
[353010075,1739485906130,-638.54,0.00014356,2]
[353010076,1739485906139,-1041.6,0.00014356,2]
[353010077,1739485906149,-500.0,0.00014356,2]
[353010078,1739485906159,-2539.19,0.00014356,2]
[353010079,1739485906169,-500.0,0.00014356,2]
[353010080,1739485906178,-3052.42,0.00014356,2]
[353010081,1739485906188,-514.61,0.00014356,2]
[353010082,1739485906198,-867.43,0.00014356,2]
[353010083,1739485906207,-1525.33,0.00014356,2]
[353010084,1739485906217,-500.0,0.00014356,2]
[353010085,1739485906227,-500.0,0.00014356,2]
[353010086,1739485906238,-1400.14,0.00014356,2]
[353010087,1739485906248,-917.77,0.00014356,2]
[353010088,1739485906257,-1241.27,0.00014356,2]
[353010089,1739485906267,-991.55,0.00014356,2]
[353010090,1739485906277,-566.52,0.00014356,2]
[353010091,1739485906287,-500.0,0.00014356,2]
[353010092,1739485906296,-500.0,0.00014356,2]
[353010093,1739485906306,-500.0,0.00014356,2]
[353010094,1739485906316,-500.0,0.00014356,2]
[353010095,1739485906326,-633.2,0.00014356,2]
[353010096,1739485906336,-717.52,0.00014356,2]
[353010097,1739485906346,-689.5,0.00014356,2]
[353010098,1739485906357,-965.58,0.00014356,2]
[353010099,1739485906367,-500.0,0.00014356,2]
[353010100,1739485906376,-756.27,0.00014356,2]
[353010101,1739485906385,-687.68,0.00014356,2]
[353010102,1739485906396,-1669.58,0.00014356,2]
[353010103,1739485906406,-1501.09,0.00014356,2]
[353010104,1739485906416,-825.83,0.00014356,2]
[353010105,1739485906425,-1337.74,0.00014356,2]
[353010106,1739485906435,-500.0,0.00014356,2]
[353010107,1739485906444,-1371.86,0.00014356,2]
[353010108,1739485906454,-500.0,0.00014356,2]
[353010109,1739485906464,-1702.26,0.00014356,2]
[353010110,1739485906474,-500.0,0.00014356,2]
[353010111,1739485906485,-1754.49,0.00014356,2]
[353010112,1739485906495,-1078.61,0.00014356,2]
[353010113,1739485906505,-869.45,0.00014356,2]
[353010114,1739485906515,-1158.07,0.00014356,2]
[353010115,1739485906525,-500.0,0.00014356,2]
[353010116,1739485906535,-500.0,0.00014356,2]
[353010117,1739485906544,-991.47,0.00014356,2]
[353010118,1739485906554,-183.038697,0.00014356,2]
[353010119,1739485906563,-1684.45,0.00014356,2]
[353010120,1739485906572,-526.8,0.00014356,2]
[353010121,1739485906582,-1302.35,0.00014356,2]
[353010122,1739485906591,-660.93,0.00014356,2]
[353010123,1739485906601,-854.62,0.00014356,2]
[353010124,1739485906611,-2012.26,0.00014356,2]
[353010125,1739485906621,-504.56,0.00014356,2]
[353010126,1739485906630,-151.603264,0.00014356,2]
[353010127,1739485906640,-763.9,0.00014356,2]
[353010128,1739485906649,-696.46,0.00014356,2]
[353010129,1739485906659,-835.17,0.00014356,2]
[353010130,1739485906669,-692.97,0.00014356,2]
[353010131,1739485906679,-566.32,0.00014356,2]
[353010132,1739485906689,-857.95,0.00014356,2]
[353010133,1739485906698,-2021.1,0.00014356,2]
[353010134,1739485906707,-702.16,0.00014356,2]
[353010135,1739485906717,-683.82,0.00014356,2]
[353010136,1739485906728,-1015.7,0.00014356,2]
[353010137,1739485906737,-713.38,0.00014356,2]
[353010138,1739485906747,-500.0,0.00014356,2]
[353010139,1739485906756,-500.0,0.00014356,2]
[353010140,1739485906767,-1424.92,0.00014356,2]
[353010141,1739485906777,-500.0,0.00014356,2]
[353010142,1739485906786,-500.0,0.00014356,2]
[353010143,1739485906795,-500.0,0.00014356,2]
[353010144,1739485906804,-811.86,0.00014356,2]
[353010145,1739485906814,-988.11,0.00014356,2]
[353010146,1739485906824,-1906.79,0.00014356,2]
[353010147,1739485906834,-1427.42,0.00014356,2]
[353010148,1739485906845,-524.63,0.00014356,2]
[353010149,1739485906854,-500.0,0.00014356,2]
[353010150,1739485906864,-183.038697,0.00014356,2]
[353010151,1739485906875,-881.54,0.00014356,2]
[353010152,1739485906885,-865.9,0.00014356,2]
[353010153,1739485906895,-1372.61,0.00014356,2]
[353010154,1739485906906,-758.33,0.00014356,2]
[353010155,1739485906916,-1840.97,0.00014356,2]
[353010156,1739485906925,-1636.34,0.00014356,2]
[353010157,1739485906934,-1782.82,0.00014356,2]
[353010158,1739485906943,-1035.24,0.00014356,2]
[353010159,1739485906953,-151.603264,0.00014356,2]
[353010160,1739485906962,-557.25,0.00014356,2]
[353010161,1739485906973,-687.87,0.00014356,2]
[353010162,1739485906983,-888.74,0.00014356,2]
[353010163,1739485906993,-500.0,0.00014356,2]
[353010164,1739485907004,-1131.23,0.00014356,2]
[353010165,1739485907015,-976.11,0.00014356,2]
[353010166,1739485907028,-548.09,0.00014356,2]
[353010167,1739485907037,-1065.2,0.00014356,2]
[353010168,1739485907047,-500.0,0.00014356,2]
[353010169,1739485907057,-1519.15,0.00014356,2]
[353010170,1739485907068,-825.94,0.00014356,2]
[353010171,1739485907078,-717.12,0.00014356,2]
[353010172,1739485907087,-718.5,0.00014356,2]
[353010173,1739485907097,-500.0,0.00014356,2]
[353010174,1739485907108,-1464.62,0.00014356,2]
[353010175,1739485907119,-1779.83,0.00014356,2]
[353010176,1739485907128,-551.0,0.00014356,2]
[353010177,1739485907138,-1813.74,0.00014356,2]
[353010178,1739485907148,-558.37,0.00014356,2]
[353010179,1739485907158,-807.26,0.00014356,2]
[353010180,1739485907167,-1306.72,0.00014356,2]
[353010181,1739485907178,-1123.76,0.00014356,2]
[353010182,1739485907188,-500.0,0.00014356,2]
[353010183,1739485907198,-500.0,0.00014356,2]
[353010184,1739485907208,-844.9,0.00014356,2]
[353010185,1739485907218,-2257.68,0.00014356,2]
[353010186,1739485907229,-831.33,0.00014356,2]
[353010187,1739485907239,-923.9,0.00014356,2]
[353010188,1739485907249,-500.0,0.00014356,2]
[353010189,1739485907259,-840.31,0.00014356,2]
[353010190,1739485907269,-151.603265,0.00014356,2]
[353010191,1739485907279,-897.69,0.00014356,2]
[353010192,1739485907289,-1270.71,0.00014356,2]
[353010193,1739485907299,-853.17,0.00014356,2]
[353010194,1739485907309,-541.30206877,0.00014356,2]
[353010195,1739485907319,-500.0,0.00014356,2]
[353010196,1739485907329,-1705.94,0.00014356,2]
[353010197,1739485907339,-500.0,0.00014356,2]
[353010198,1739485907348,-876.71,0.00014356,2]
[353010199,1739485907359,-885.91,0.00014356,2]
[353010200,1739485907368,-500.0,0.00014356,2]
[353010201,1739485907378,-2161.09,0.00014356,2]
[353010202,1739485907387,-500.0,0.00014356,2]
[353010203,1739485907398,-500.0,0.00014356,2]
[353010204,1739485907408,-1238.79,0.00014356,2]
[353010205,1739485907418,-3040.0,0.00014356,2]
[353010206,1739485907428,-1105.8,0.00014356,2]
[353010207,1739485907438,-2265.19,0.00014356,2]
[353010208,1739485907448,-1322.86,0.00014356,2]
[353010209,1739485907458,-500.0,0.00014356,2]
[353010210,1739485907467,-646.18,0.00014356,2]
[353010211,1739485907477,-906.34,0.00014356,2]
[353010212,1739485907487,-523.6,0.00014356,2]
[353010213,1739485907498,-893.53,0.00014356,2]
[353010214,1739485907508,-500.0,0.00014356,2]
[353010215,1739485907518,-183.038698,0.00014356,2]
[353010216,1739485907528,-970.55,0.00014356,2]
[353010217,1739485907538,-702.31,0.00014356,2]
[353010218,1739485907547,-553.1,0.00014356,2]
[353010219,1739485907557,-2482.92,0.00014356,2]
[353010220,1739485907566,-500.0,0.00014356,2]
[353010221,1739485907576,-858.18,0.00014356,2]
[353010222,1739485907585,-669.76,0.00014356,2]
[353010223,1739485907594,-710.97,0.00014356,2]
[353010224,1739485907604,-1892.5,0.00014356,2]
[353010225,1739485907614,-739.26,0.00014356,2]
[353010226,1739485907625,-1559.26,0.00014356,2]
[353010227,1739485907636,-151.603264,0.00014356,2]
[353010228,1739485907646,-602.38,0.00014356,2]
[353010229,1739485907656,-1326.07,0.00014356,2]
[353010230,1739485907665,-835.99,0.00014356,2]
[353010231,1739485907675,-1789.82,0.00014356,2]
[353010232,1739485907685,-500.0,0.00014356,2]
[353010233,1739485907695,-1318.31,0.00014356,2]
[353010234,1739485907704,-551.86,0.00014356,2]
[353010235,1739485907714,-500.0,0.00014356,2]
[353010236,1739485907725,-864.67,0.00014356,2]
[353010237,1739485907735,-1141.82,0.00014356,2]
[353010238,1739485907744,-1994.16,0.00014356,2]
[353010239,1739485907754,-812.11,0.00014356,2]
[353010240,1739485907764,-500.0,0.00014356,2]
[353010241,1739485907773,-500.0,0.00014356,2]
[353010242,1739485907783,-1079.19,0.00014356,2]
[353010243,1739485907793,-859.06,0.00014356,2]
[353010244,1739485907802,-1941.15,0.00014356,2]
[353010245,1739485907811,-2409.32,0.00014356,2]
[353010246,1739485907821,-592.63,0.00014356,2]
[353010247,1739485907831,-900.38,0.00014356,2]
[353010248,1739485907841,-1010.42,0.00014356,2]
[353010249,1739485908051,-1741.64,0.00014356,2]
[353010250,1739485908063,-730.65,0.00014356,2]
[353010251,1739485908072,-1201.88,0.00014356,2]
[353010252,1739485908083,-549.55682041,0.00014356,2]
[353010253,1739485908096,-2964.55,0.00014356,2]
[353010254,1739485908106,-645.62,0.00014356,2]
[353010255,1739485908116,-765.27,0.00014356,2]
[353010256,1739485908126,-1693.27,0.00014356,2]
[353010257,1739485908136,-151.603265,0.00014356,2]
[353010258,1739485908147,-1023.18,0.00014356,2]
[353010259,1739485908157,-1983.35,0.00014356,2]
[353010260,1739485908167,-1199.21,0.00014356,2]
[353010261,1739485908178,-1991.14,0.00014356,2]
[353010262,1739485908189,-533.09,0.00014356,2]
[353010263,1739485908200,-2700.69,0.00014356,2]
[353010264,1739485908210,-500.0,0.00014356,2]
[353010265,1739485908220,-4281.75,0.00014356,2]
[353010266,1739485908230,-1072.56,0.00014356,2]
[353010267,1739485908239,-2181.51,0.00014356,2]
[353010268,1739485908249,-2105.12,0.00014356,2]
[353010269,1739485908260,-500.0,0.00014356,2]
[353010270,1739485908269,-2362.29,0.00014356,2]
[353010271,1739485908279,-797.65,0.00014356,2]
[353010272,1739485908289,-1372.43,0.00014356,2]
[353010273,1739485908300,-371.68898569,0.00014356,2]
[353010274,1739485908310,-500.0,0.00014356,2]
[353010275,1739485908320,-2270.27,0.00014356,2]
[353010276,1739485908330,-500.0,0.00014356,2]
[353010277,1739485908340,-701.26,0.00014356,2]
[353010278,1739485908350,-1635.6,0.00014356,2]
[353010279,1739485908364,-1210.46,0.00014356,2]
[353010280,1739485908374,-1551.99,0.00014356,2]
[353010281,1739485908383,-2766.93,0.00014356,2]
[353010282,1739485908394,-4033.58,0.00014356,2]
[353010283,1739485908404,-2765.04,0.00014356,2]
[353010284,1739485908414,-660.75,0.00014356,2]
[353010285,1739485908424,-2103.7,0.00014356,2]
[353010286,1739485908434,-183.038697,0.00014356,2]
[353010287,1739485908444,-924.48,0.00014356,2]
[353010288,1739485908454,-794.33,0.00014356,2]
[353010289,1739485908464,-1374.92,0.00014356,2]
[353010290,1739485908474,-1140.21,0.00014356,2]
[353010291,1739485908484,-500.0,0.00014356,2]
[353010292,1739485908494,-1394.91,0.00014356,2]
[353010293,1739485908504,-2230.12,0.00014356,2]
[353010294,1739485908513,-500.0,0.00014356,2]
[353010295,1739485908523,-878.31,0.00014356,2]
[353010296,1739485908533,-1071.07,0.00014356,2]
[353010297,1739485908543,-151.603265,0.00014356,2]
[353010298,1739485908553,-3342.84,0.00014356,2]
[353010299,1739485908563,-683.58,0.00014356,2]
[353010300,1739485908574,-1308.38,0.00014356,2]
[353010301,1739485908584,-3531.08,0.00014356,2]
[353010302,1739485908594,-1653.81,0.00014356,2]
[353010303,1739485908604,-553.67,0.00014356,2]
[353010304,1739485908614,-988.77,0.00014356,2]
[353010305,1739485908624,-500.0,0.00014356,2]
[353010306,1739485908635,-2226.29,0.00014356,2]
[353010307,1739485908645,-969.77,0.00014356,2]
[353010308,1739485908655,-1807.21,0.00014356,2]
[353010309,1739485908666,-1796.12,0.00014356,2]
[353010310,1739485908676,-500.0,0.00014356,2]
[353010311,1739485908686,-3314.33,0.00014356,2]
[353010312,1739485908696,-3189.0,0.00014356,2]
[353010313,1739485908706,-803.11,0.00014356,2]
[353010314,1739485908716,-607.85,0.00014356,2]
[353010315,1739485908727,-761.91,0.00014356,2]
[353010316,1739485908736,-621.21,0.00014356,2]
[353010317,1739485908746,-1972.85,0.00014356,2]
[353010318,1739485908755,-523.93,0.00014356,2]
[353010319,1739485908766,-3990.94,0.00014356,2]
[353010320,1739485908777,-719.42,0.00014356,2]
[353010321,1739485908787,-749.77,0.00014356,2]
[353010322,1739485908797,-500.0,0.00014356,2]
[353010323,1739485908809,-1753.67,0.00014356,2]
[353010324,1739485908819,-2497.17,0.00014356,2]
[353010325,1739485908829,-500.0,0.00014356,2]
[353010326,1739485908839,-1325.27,0.00014356,2]
[353010327,1739485908849,-3120.71,0.00014356,2]
[353010328,1739485908860,-511.69,0.00014356,2]
[353010329,1739485908869,-3912.39,0.00014356,2]
[353010330,1739485908879,-1203.12,0.00014356,2]
[353010331,1739485908890,-635.38,0.00014356,2]
[353010332,1739485908900,-500.0,0.00014356,2]
[353010333,1739485908910,-1628.89,0.00014356,2]
[353010334,1739485908919,-1174.26,0.00014356,2]
[353010335,1739485908930,-401.6639176,0.00014356,2]
[353010336,1739485908941,-5014.48,0.00014356,2]
[353010337,1739485908951,-500.0,0.00014356,2]
[353010338,1739485908960,-591.53,0.00014356,2]
[353010339,1739485908971,-2834.89,0.00014356,2]
[353010340,1739485908982,-1129.98,0.00014356,2]
[353010341,1739485908994,-4012.08,0.00014356,2]
[353010342,1739485909005,-1877.06,0.00014356,2]
[353010343,1739485909016,-2305.18,0.00014356,2]
[353010344,1739485909031,-3400.07,0.00014356,2]
[353010345,1739485909041,-10601.94,0.00014356,2]
[353010346,1739485909051,-1278.06,0.00014356,2]
[353010347,1739485909063,-2677.19,0.00014356,2]
[353010348,1739485909074,-2091.53,0.00014356,2]
[353010349,1739485909084,-500.0,0.00014356,2]
[353010350,1739485909095,-1914.19,0.00014356,2]
[353010351,1739485909107,-6319.86,0.00014356,2]
[353010352,1739485909117,-2222.28,0.00014356,2]
[353010353,1739485909127,-1244.36,0.00014356,2]
[353010354,1739485909137,-2434.73,0.00014356,2]
[353010355,1739485909148,-1301.75,0.00014356,2]
[353010356,1739485909159,-3378.69,0.00014356,2]
[353010357,1739485909170,-1073.98,0.00014356,2]
[353010358,1739485909180,-500.0,0.00014356,2]
[353010359,1739485909190,-500.0,0.00014356,2]
[353010360,1739485909201,-1003.25,0.00014356,2]
[353010361,1739485909212,-3213.97,0.00014356,2]
[353010362,1739485909223,-1894.84,0.00014356,2]
[353010363,1739485909234,-1618.51,0.00014356,2]
[353010364,1739485909244,-3027.83,0.00014356,2]
[353010365,1739485909255,-1463.57,0.00014356,2]
[353010366,1739485909266,-551.57,0.00014356,2]
[353010367,1739485909276,-1866.04,0.00014356,2]
[353010368,1739485909287,-3405.09,0.00014356,2]
[353010369,1739485909297,-3794.0,0.00014356,2]
[353010370,1739485909308,-3558.25,0.00014356,2]
[353010371,1739485909319,-1199.38,0.00014356,2]
[353010372,1739485909329,-5141.78,0.00014356,2]
[353010373,1739485909339,-5036.58,0.00014356,2]
[353010374,1739485909350,-972.02,0.00014356,2]
[353010375,1739485909360,-1457.37,0.00014356,2]
[353010376,1739485909370,-4943.34,0.00014356,2]
[353010377,1739485909381,-1646.26,0.00014356,2]
[353010378,1739485909391,-1023.76,0.00014356,2]
[353010379,1739485909402,-500.0,0.00014356,2]
[353010380,1739485909412,-973.76,0.00014356,2]
[353010381,1739485909422,-1078.92,0.00014356,2]
[353010382,1739485909432,-3488.7,0.00014356,2]
[353010383,1739485909442,-9947.08,0.00014356,2]
[353010384,1739485909454,-1167.35,0.00014356,2]
[353010385,1739485909464,-1925.44,0.00014356,2]
[353010386,1739485909475,-3871.01,0.00014356,2]
[353010387,1739485909485,-3374.31,0.00014356,2]
[353010388,1739485909495,-3262.34,0.00014356,2]
[353010389,1739485909506,-3751.7,0.00014356,2]
[353010390,1739485909516,-2216.47,0.00014356,2]
[353010391,1739485909526,-500.0,0.00014356,2]
[353010392,1739485909536,-500.0,0.00014356,2]
[353010393,1739485909546,-2198.57,0.00014356,2]
[353010394,1739485909556,-1272.94,0.00014356,2]
[353010395,1739485909566,-3047.23,0.00014356,2]
[353010396,1739485909576,-4282.13,0.00014356,2]
[353010397,1739485909586,-1579.29,0.00014356,2]
[353010398,1739485909596,-2262.09,0.00014356,2]
[353010399,1739485909606,-2034.1,0.00014356,2]
[353010400,1739485909615,-4796.16,0.00014356,2]
[353010401,1739485909625,-621.58,0.00014356,2]
[353010402,1739485909635,-4188.27,0.00014356,2]
[353010403,1739485909646,-5302.96,0.00014356,2]
[353010404,1739485909656,-2900.35,0.00014356,2]
[353010405,1739485909666,-3352.12,0.00014356,2]
[353010406,1739485909675,-525.01,0.00014356,2]
[353010407,1739485909685,-2517.29,0.00014356,2]
[353010408,1739485909695,-3510.5,0.00014356,2]
[353010409,1739485909704,-1911.76,0.00014356,2]
[353010410,1739485909714,-3186.25,0.00014356,2]
[353010411,1739485909724,-1411.53,0.00014356,2]
[353010412,1739485909733,-5245.34,0.00014356,2]
[353010413,1739485909743,-500.0,0.00014356,2]
[353010414,1739485909752,-4040.71,0.00014356,2]
[353010415,1739485909761,-2434.4,0.00014356,2]
[353010416,1739485909771,-797.43,0.00014356,2]
[353010417,1739485909780,-3997.95,0.00014356,2]
[353010418,1739485909790,-500.0,0.00014356,2]
[353010419,1739485909800,-3613.39,0.00014356,2]
[353010420,1739485909809,-3418.06,0.00014356,2]
[353010421,1739485909819,-566.64,0.00014356,2]
[353010422,1739485909828,-500.0,0.00014356,2]
[353010423,1739485909838,-8838.73,0.00014356,2]
[353010424,1739485909847,-624.99,0.00014356,2]
[353010425,1739485909857,-720.74,0.00014356,2]
[353010426,1739485909867,-3533.94,0.00014356,2]
[353010427,1739485909876,-3776.32,0.00014356,2]
[353010428,1739485909886,-522.13,0.00014356,2]
[353010429,1739485909896,-4171.69,0.00014356,2]
[353010430,1739485909905,-2767.11,0.00014356,2]
[353010431,1739485909914,-500.0,0.00014356,2]
[353010432,1739485909924,-1300.63,0.00014356,2]
[353010433,1739485909933,-3523.18,0.00014356,2]
[353010434,1739485909943,-4629.45,0.00014356,2]
[353010435,1739485909952,-2317.93,0.00014356,2]
[353010436,1739485909962,-542.74,0.00014356,2]
[353010437,1739485909971,-6501.79,0.00014356,2]
[353010438,1739485909981,-649.96,0.00014356,2]
[353010439,1739485909990,-2852.77,0.00014356,2]
[353010440,1739485910000,-4468.57,0.00014356,2]
[353010441,1739485910010,-773.78,0.00014356,2]
[353010442,1739485910019,-724.47,0.00014356,2]
[353010443,1739485910033,-2513.38,0.00014356,2]
[353010444,1739485910042,-4071.43,0.00014356,2]
[353010445,1739485910052,-3680.29,0.00014356,2]
[353010446,1739485910062,-3113.41,0.00014356,2]
[353010447,1739485910072,-964.12,0.00014356,2]
[353010448,1739485910083,-500.0,0.00014356,2]
[353010449,1739485910096,-500.0,0.00014356,2]
[353010450,1739485910106,-1523.71,0.00014356,2]
[353010451,1739485910116,-525.45,0.00014356,2]
[353010452,1739485910126,-741.53,0.00014356,2]
[353010453,1739485910136,-2768.98,0.00014356,2]
[353010454,1739485910146,-1470.77,0.00014356,2]
[353010455,1739485910156,-3441.38,0.00014356,2]
[353010456,1739485910167,-4132.51,0.00014356,2]
[353010457,1739485910176,-1712.88,0.00014356,2]
[353010458,1739485910186,-4938.55,0.00014356,2]
[353010459,1739485910196,-2124.68,0.00014356,2]
[353010460,1739485910206,-1226.02,0.00014356,2]
[353010461,1739485910216,-1789.26,0.00014356,2]
[353010462,1739485910226,-1451.96,0.00014356,2]
[353010463,1739485910303,-824.05,0.00014356,2]
[353010464,1739485910314,-3558.23,0.00014356,2]
[353010465,1739485910323,-4167.53,0.00014356,2]
[353010466,1739485910333,-880.79,0.00014356,2]
[353010467,1739485910342,-1936.97,0.00014356,2]
[353010468,1739485910352,-1838.56,0.00014356,2]
[353010469,1739485910361,-2962.2,0.00014356,2]
[353010470,1739485910370,-598.78,0.00014356,2]
[353010471,1739485910380,-709.99,0.00014356,2]
[353010472,1739485910389,-4502.56,0.00014356,2]
[353010473,1739485910398,-500.0,0.00014356,2]
[353010474,1739485910407,-156.91,0.00014362,2]
[353010475,1739485910417,-900.0,0.00014378,2]
[353010476,1739485910426,-800.0,0.00014378,2]
[353010477,1739485910435,-299.0,0.0001438,2]
[353010478,1739485910445,-234.0,0.00014387,3]
[353010479,1739485910454,-407.82670933,0.00014397,30]
[353010480,1739485910463,-774.63,0.000144,2]
[353010481,1739485910472,-169.264937,0.00014401,2]
[353010482,1739485910482,-1124.476697,0.00014438,2]
[353010483,1739485910493,-1030.770305,0.00014438,2]
[353010484,1739485910502,-1369.077968,0.00014438,2]
[353010485,1739485910512,-500.0,0.00014438,2]
[353010486,1739485910521,-500.0,0.00014438,2]
[353010487,1739485910530,-781.27,0.00014438,2]
[353010488,1739485910540,-640.12,0.00014438,2]
[353010489,1739485910549,-571.73,0.00014438,2]
[353010490,1739485910559,-767.83,0.00014438,2]
[353010491,1739485910568,-517.58,0.00014438,2]
[353010492,1739485910577,-748.33,0.00014438,2]
[353010493,1739485910586,-500.0,0.00014438,2]
[353010494,1739485910596,-1019.36,0.00014438,2]
[353010495,1739485910605,-500.0,0.00014438,2]
[353010496,1739485910614,-159.21727161,0.00014438,2]
[353010497,1739485910623,-536.11,0.00014438,2]
[353010498,1739485910632,-853.88,0.00014438,2]
[353010499,1739485910641,-500.0,0.00014438,2]
[353010500,1739485910651,-500.0,0.00014438,2]
[353010501,1739485910660,-1237.75,0.00014438,2]
[353010502,1739485910669,-500.0,0.00014438,2]
[353010503,1739485910678,-823.6,0.00014438,2]
[353010504,1739485910688,-500.0,0.00014438,2]
[353010505,1739485910697,-583.03,0.00014438,2]
[353010506,1739485910706,-588.86,0.00014438,2]
[353010507,1739485910716,-500.0,0.00014438,2]
[353010508,1739485910725,-839.01,0.00014438,2]
[353010509,1739485910734,-632.18,0.00014438,2]
[353010510,1739485910743,-500.0,0.00014438,2]
[353010511,1739485910752,-1100.34,0.00014438,2]
[353010512,1739485910761,-500.0,0.00014438,2]
[353010513,1739485910770,-907.89,0.00014438,2]
[353010514,1739485910780,-500.0,0.00014438,2]
[353010515,1739485910789,-791.76,0.00014438,2]
[353010516,1739485910800,-500.0,0.00014438,2]
[353010517,1739485910812,-1002.52,0.00014438,2]
[353010518,1739485910823,-500.0,0.00014438,2]
[353010519,1739485910833,-673.2,0.00014438,2]
[353010520,1739485910843,-864.99,0.00014438,2]
[353010521,1739485910852,-556.42,0.00014438,2]
[353010522,1739485910861,-606.37,0.00014438,2]
[353010523,1739485910870,-500.0,0.00014438,2]
[353010524,1739485910879,-500.0,0.00014438,2]
[353010525,1739485910888,-500.0,0.00014438,2]
[353010526,1739485910897,-542.4,0.00014438,2]
[353010527,1739485910907,-500.0,0.00014438,2]
[353010528,1739485910916,-606.89,0.00014438,2]
[353010529,1739485910925,-551.03,0.00014438,2]
[353010530,1739485910934,-500.0,0.00014438,2]
[353010531,1739485910943,-571.58,0.00014438,2]
[353010532,1739485910952,-507.69,0.00014438,2]
[353010533,1739485910962,-500.0,0.00014438,2]
[353010534,1739485910971,-500.0,0.00014438,2]
[353010535,1739485910980,-500.0,0.00014438,2]
[353010536,1739485910989,-500.0,0.00014438,2]
[353010537,1739485910998,-500.0,0.00014438,2]
[353010538,1739485911008,-500.0,0.00014438,2]
[353010539,1739485911017,-500.0,0.00014438,2]
[353010540,1739485911031,-500.0,0.00014438,2]